fUSD/lending_fUSD_20251117
["ID","MTS","AMOUNT","RATE_DAILY","PERIOD"]
[394185765,1763362244357,-300.0,0.0002869,2]
[394185766,1763362244367,-300.0,0.0002869,2]
[394185768,1763362244376,-300.0,0.00028701,2]
[394185770,1763362244385,-300.0,0.00028707,2]
[394185771,1763362244395,-184.240437,0.00028709,7]
[394185773,1763362244404,-151.0,0.00028709,7]
[394185775,1763362244413,-151.0,0.00028709,7]
[394185776,1763362244423,-155.948536,0.00028709,7]
[394185778,1763362244432,-152.233638,0.00028709,7]
[394185780,1763362244442,-151.0,0.00028709,7]
[394185781,1763362244451,-151.0,0.00028709,7]
[394185783,1763362244460,-151.0,0.00028709,7]
[394185785,1763362244469,-151.0,0.00028709,7]
[394185786,1763362244478,-151.0,0.00028709,7]
[394185788,1763362244487,-151.0,0.00028709,7]
[394185789,1763362244496,-151.0,0.00028709,7]
[394185791,1763362244506,-300.0,0.00028709,2]
[394185793,1763362244516,-300.0,0.0002871,2]
[394185795,1763362244525,-300.0,0.00028714,2]
[394185796,1763362244534,-500.0,0.00028716,7]
[394185798,1763362244543,-300.0,0.00028716,2]
[394185800,1763362244552,-300.0,0.00028717,2]
[394185801,1763362244561,-300.0,0.00028719,2]
[394185803,1763362244571,-300.0,0.0002872,2]
[394185805,1763362244580,-300.0,0.0002873,2]
[394185807,1763362244589,-300.0,0.00028735,2]
[394185808,1763362244598,-300.0,0.00028737,2]
[394185810,1763362244608,-300.0,0.00028743,2]
[394185812,1763362244617,-300.0,0.00028745,2]
[394185814,1763362244627,-300.0,0.00028748,2]
[394185815,1763362244636,-300.0,0.00028753,2]
[394185817,1763362244645,-300.0,0.00028753,2]
[394185819,1763362244655,-300.0,0.00028753,2]
[394185821,1763362244664,-300.0,0.00028756,2]
[394185822,1763362244674,-151.0,0.00028765,7]
[394185824,1763362244684,-151.0,0.00028765,7]
[394185826,1763362244693,-153.889576,0.00028765,7]
[394185828,1763362244703,-239.322123,0.00028765,7]
[394185830,1763362244713,-151.0,0.00028765,7]
[394185831,1763362244726,-159.785553,0.00028765,7]
[394185833,1763362244736,-300.0,0.00028775,2]
[394185835,1763362244746,-300.0,0.00028778,2]
[394185837,1763362244755,-300.0,0.00028781,2]
[394185838,1763362244764,-300.0,0.00028787,2]
[394185840,1763362244774,-300.0,0.00028788,2]
[394185843,1763362244790,-300.0,0.0002879,2]
[394185845,1763362244803,-300.0,0.00028792,2]
[394185846,1763362244813,-300.0,0.00028799,2]
[394185848,1763362244823,-300.0,0.00028801,2]
[394185850,1763362244832,-300.0,0.00028802,2]
[394185852,1763362244843,-300.0,0.00028803,2]
[394185854,1763362244852,-300.0,0.00028804,2]
[394185855,1763362244862,-300.0,0.00028805,2]
[394185857,1763362244872,-300.0,0.00028805,2]
[394185859,1763362244882,-159.87502782,0.00028807,3]
[394185861,1763362244892,-152.0,0.00028807,3]
[394185863,1763362244902,-152.0,0.00028807,3]
[394185864,1763362244912,-152.0,0.00028807,3]
[394185866,1763362244921,-152.0,0.00028807,3]
[394185868,1763362244931,-152.0,0.00028807,3]
[394185870,1763362244941,-152.0,0.00028807,3]
[394185871,1763362244950,-152.0,0.00028807,3]
[394185874,1763362244961,-152.0,0.00028807,3]
[394185876,1763362244972,-152.0,0.00028807,3]
[394185878,1763362244981,-152.0,0.00028807,3]
[394185879,1763362244991,-152.0,0.00028807,3]
[394185880,1763362245000,-152.0,0.00028807,3]
[394185881,1763362245009,-152.0,0.00028807,3]
[394185882,1763362245019,-152.0,0.00028807,3]
[394185883,1763362245028,-152.0,0.00028807,3]
[394185884,1763362245038,-152.0,0.00028807,3]
[394185885,1763362245047,-287.95976282,0.00028807,3]
[394185886,1763362245056,-212.0,0.0002882,30]
[394185887,1763362245066,-500.0,0.00028861,7]
[394185888,1763362245075,-2000.0,0.000289,2]
[394185889,1763362245085,-301.44539658,0.00029,2]
[394185890,1763362245094,-1000.0,0.00029,26]
[394185892,1763362245104,-649.7,0.00029,14]
[394185893,1763362245114,-500.0,0.00029068,7]
[394185895,1763362245123,-500.0,0.00029102,7]
[394185897,1763362245133,-151.0,0.00029112,7]
[394185899,1763362245143,-151.0,0.00029112,7]
[394185901,1763362245157,-151.0,0.00029112,7]
[394185904,1763362245167,-151.0,0.00029112,7]
[394185906,1763362245176,-159.089744,0.00029112,7]
[394185907,1763362245186,-151.0,0.00029112,7]
[394185909,1763362245196,-159.089744,0.00029112,7]
[394185911,1763362245206,-151.0,0.00029112,7]
[394185913,1763362245216,-151.0,0.00029112,7]
[394185915,1763362245226,-151.0,0.00029112,7]
[394185916,1763362245236,-159.089744,0.00029112,7]
[394185917,1763362245246,-159.089744,0.00029112,7]
[394185918,1763362245256,-151.0,0.00029112,7]
[394185919,1763362245266,-151.0,0.00029112,7]
[394185920,1763362245276,-151.0,0.00029112,7]
[394185921,1763362245286,-153.462171,0.00029112,7]
[394185922,1763362245296,-251.060618,0.00029112,7]
[394185923,1763362245306,-151.0,0.00029112,7]
[394185924,1763362245316,-151.0,0.00029112,7]
[394185925,1763362245326,-210.960158,0.00029112,7]
[394185926,1763362245338,-155.681057,0.00029112,7]
[394185927,1763362245352,-152.422279,0.00029112,7]
[394185928,1763362245362,-152.422279,0.00029112,7]
[394185929,1763362245372,-152.422279,0.00029112,7]
[394185930,1763362245383,-152.422279,0.00029112,7]
[394185931,1763362245394,-151.984953,0.00029112,7]
[394185932,1763362245404,-151.0,0.00029112,7]
[394185933,1763362245413,-154.764255,0.00029112,7]
[394185934,1763362245423,-178.645405,0.00029112,7]
[394185935,1763362245432,-178.645405,0.00029112,7]
[394185936,1763362245442,-178.645405,0.00029112,7]
[394185937,1763362245451,-178.645405,0.00029112,7]
[394185939,1763362245462,-503.96087444,0.0002913,5]
[394185941,1763362245472,-505.58841279,0.00029145,7]
[394185943,1763362245481,-171.41518184,0.00029153,2]
[394185945,1763362245491,-500.0,0.00029231,7]
[394185947,1763362245500,-198.41,0.00029311,30]
[394185950,1763362245510,-500.0,0.00029379,7]
[394185952,1763362245519,-300.0,0.00029396,2]
[394185954,1763362245528,-1132.35277755,0.000294,5]
[394185956,1763362245538,-1126.04187714,0.000294,5]
[394185958,1763362245548,-1022.36121093,0.000294,5]
[394185960,1763362245558,-1026.39276792,0.000294,5]
[394185962,1763362245568,-1036.34519711,0.000294,5]
[394185964,1763362245577,-1075.77508001,0.000294,5]
[394185966,1763362245587,-1072.34044429,0.000294,5]
[394185968,1763362245598,-1068.36381646,0.000294,5]
[394185970,1763362245608,-1100.4872244,0.000294,5]
[394185973,1763362245618,-1095.27806442,0.000294,5]
[394185975,1763362245628,-1018.19091466,0.000294,5]
[394185977,1763362245638,-1016.26704778,0.000294,5]
[394185979,1763362245649,-1039.23824787,0.000294,5]
[394185981,1763362245660,-1035.09590126,0.000294,5]
[394185983,1763362245670,-1106.85109767,0.000294,5]
[394185985,1763362245680,-1085.69015966,0.000294,5]
[394186014,1763362245979,-1119.460818,0.000294,5]
[394186015,1763362245989,-1600.75583119,0.000294,5]
[394186016,1763362245999,-11471.38355317,0.000294,3]
[394186017,1763362246008,-151.0,0.000294,7]
[394186018,1763362246022,-299.750487,0.000294,7]
[394186020,1763362246032,-151.0,0.000294,7]
[394186023,1763362246042,-151.0,0.000294,7]
[394186025,1763362246052,-151.0,0.000294,7]
[394186028,1763362246062,-151.0,0.000294,7]
[394186030,1763362246071,-151.0,0.000294,7]
[394186031,1763362246081,-151.0,0.000294,7]
[394186032,1763362246091,-151.0,0.000294,7]
[394186033,1763362246100,-151.0,0.000294,7]
[394186034,1763362246110,-151.0,0.000294,7]
[394186035,1763362246119,-151.0,0.000294,7]
[394186036,1763362246128,-151.0,0.000294,7]
[394186037,1763362246138,-157.232973,0.000294,7]
[394186038,1763362246147,-1318.0,0.00029431,2]
[394186039,1763362246157,-575.0,0.00029431,2]
[394186040,1763362246168,-608.0,0.00029431,2]
[394186041,1763362246177,-767.048,0.00029431,2]
[394186042,1763362246187,-793.0,0.00029431,2]
[394186043,1763362246196,-1275.0,0.00029431,2]
[394186044,1763362246206,-1604.0,0.00029431,2]
[394186045,1763362246218,-705.0,0.00029431,2]
[394186046,1763362246230,-309.29654756,0.00029469,2]
[394186047,1763362246239,-300.0,0.00029469,2]
[394186048,1763362246249,-500.0,0.0002947,7]
[394186049,1763362246259,-6174.23,0.000295,2]
[394186050,1763362246269,-489.95,0.000295,7]
[394186052,1763362246280,-300.0,0.00029543,2]
[394186053,1763362246290,-500.0,0.00029589,2]
[394186054,1763362246301,-404.11447531,0.00029589,2]
[394186055,1763362246310,-500.0,0.00029602,7]
[394186056,1763362246320,-300.0,0.00029616,2]
[394186057,1763362246329,-996.87377428,0.0002962,2]
[394186058,1763362246340,-446.60278219,0.0002962,2]
[394186060,1763362246351,-500.0,0.00029623,7]
[394186061,1763362246361,-308.14960022,0.0002969,2]
[394186062,1763362246371,-1029.99,0.000297,7]
[394186063,1763362246380,-162.01299097,0.00029768,30]
[394186064,1763362246390,-151.0,0.00029804,2]
[394186065,1763362246400,-1065.84143354,0.00029811,3]
[394186066,1763362246409,-500.0,0.00029893,7]
[394186067,1763362246419,-500.0,0.00029898,7]
[394186068,1763362246428,-191.04033552,0.00029899,7]
[394186069,1763362246437,-41910.99807608,0.000299,2]
[394186076,1763362246647,-177.71699668,0.00020504,2]
[394186077,1763362246658,-501.99806,0.000249,7]
[394186078,1763362246669,-315.149019,0.000249,7]
[394186079,1763362246680,-416.78,0.00027656,2]
[394186080,1763362246693,-287.1744063,0.000299,2]
[394186081,1763362246712,-410.0,0.000299,2]
[394186082,1763362246727,-499.53377112,0.000299,2]
[394186083,1763362246736,-14563.069565,0.00029904,2]
[394186084,1763362246746,-300.0,0.00029914,2]
[394186085,1763362246756,-500.0,0.00029982,7]
[394186086,1763362246767,-6969.69681524,0.0003,5]
[394186097,1763362317659,2814558.80729458,0.00030137,120]
[394186098,1763362446934,314.34,0.00013699,2]
[394186105,1763362734086,-1035.0,0.00017799,2]
[394186110,1763363317282,-331.0,0.00017799,2]
[394186111,1763363317314,-293.0,0.00017799,2]
[394186112,1763363317344,-300.0,0.000178,2]
[394186113,1763363317376,-195.0,0.000178,2]
[394186114,1763363317404,-280.21440447,0.000178,2]
[394186115,1763363317432,-300.0,0.00019578,2]
[394186116,1763363317462,-302.93030867,0.00019579,2]
[394186117,1763363317490,-300.0,0.00019579,2]
[394186118,1763363317518,-195.0,0.00019579,2]
[394186119,1763363317546,-250.0,0.00019579,2]
[394186120,1763363317574,-342.97092283,0.00019579,2]
[394186121,1763363317603,-314.34,0.00020187,2]
[394186122,1763363317632,-1000.0,0.0002045,2]
[394186123,1763363317662,-420.0,0.00021327,2]
[394186124,1763363317956,-575.0,0.00021622,2]
[394186125,1763363317984,-3431.0,0.00021622,2]
[394186126,1763363318012,-384.01,0.00021622,2]
[394186127,1763363318509,-1219.99,0.00021622,2]
[394186128,1763363318538,-705.0,0.00021622,2]
[394186129,1763363318570,-1318.0,0.00021622,2]
[394186130,1763363318599,-821.0,0.00021622,2]
[394186131,1763363318626,-597.03,0.00021622,2]
[394186132,1763363318853,-677.97,0.00021622,2]
[394186133,1763363318884,-793.0,0.00021622,2]
[394186134,1763363318914,-569.07,0.00021622,2]
[394186135,1763363318950,-4080.08,0.00021622,2]
[394186136,1763363319180,-1839.85,0.00021622,2]
[394186137,1763363319209,-560.0,0.00021622,2]
[394186138,1763363319237,-907.0,0.00021622,2]
[394186139,1763363319268,-1191.0,0.00021622,2]
[394186140,1763363319300,-177.81,0.00021622,2]
[394186141,1763363319330,-150.99,0.00021758,2]
[394186142,1763363319359,-60.61,0.00021758,2]
[394186143,1763363319404,-225.49,0.00021758,2]
[394186144,1763363319434,-177.81,0.00021896,2]
[394186145,1763363319462,-301.45476264,0.00021972,2]
[394186146,1763363319492,-168.0,0.0002206,2]
[394186147,1763363319520,-286.52,0.0002206,2]
[394186148,1763363319551,-168.0,0.00022178,2]
[394186149,1763363319583,-168.0,0.00022583,2]
[394186150,1763363319612,-168.0,0.00022909,2]
[394186151,1763363319644,-567.0,0.00023233,2]
[394186152,1763363319673,-168.0,0.00023389,2]
[394186153,1763363319703,-168.0,0.00023393,2]
[394186154,1763363319733,-168.0,0.00023675,2]
[394186155,1763363319761,-575.0,0.00024622,2]
[394186156,1763363319790,-1604.0,0.00024622,2]
[394186157,1763363320229,-705.0,0.00024622,2]
[394186158,1763363320256,-1318.0,0.00024622,2]
[394186159,1763363320286,-821.0,0.00024622,2]
[394186160,1763363320313,-1275.0,0.00024622,2]
[394186161,1763363320341,-793.0,0.00024622,2]
[394186162,1763363320682,-2410.528,0.00024622,2]
[394186163,1763363320711,-359.127,0.00024622,2]
[394186164,1763363320738,-907.0,0.00024622,2]
[394186165,1763363320766,-1191.0,0.00024622,2]
[394186166,1763363320954,-407.24,0.00024658,2]
[394186167,1763363320980,-1203.2381,0.000247,2]
[394186168,1763363321008,-3354.3889,0.000247,2]
[394186169,1763363321057,-70.276,0.000247,2]
[394186170,1763363321086,-500.0,0.00025384,7]
[394186171,1763363321113,-500.0,0.00025644,7]
[394186172,1763363321143,-500.0,0.00025654,7]
[394186173,1763363321171,-500.0,0.00025664,7]
[394186174,1763363321200,-500.0,0.00025667,7]
[394186175,1763363321231,-330.91,0.00025688,2]
[394186176,1763363321260,-500.0,0.00025748,7]
[394186177,1763363321293,-500.0,0.00025752,7]
[394186178,1763363321322,-500.0,0.00025785,7]
[394186179,1763363321351,-500.0,0.00025804,7]
[394186180,1763363321628,-500.0,0.00025879,7]
[394186181,1763363321657,-500.0,0.00025918,7]
[394186182,1763363321684,-944.86,0.00025981,30]
[394186183,1763363321713,-500.0,0.00026019,7]
[394186184,1763363321744,-150.0,0.00026047,2]
[394186185,1763363321774,-1000.0,0.00026071,2]
[394186186,1763363321802,-1000.0,0.00026081,2]
[394186187,1763363321840,-1852.42,0.00026133,2]
[394186188,1763363321868,-500.0,0.00026173,2]
[394186189,1763363321898,-500.0,0.00026173,2]
[394186190,1763363325968,-2340.18045588,0.00026178,2]
[394186191,1763363325983,-10000.01,0.00026178,2]
[394186192,1763363325997,-6537.06954412,0.00026178,2]
[394186193,1763363326007,-500.0,0.00026261,7]
[394186194,1763363326017,-151.0,0.00026288,2]
[394186195,1763363326027,-277.35679052,0.00026288,2]
[394186196,1763363326037,-2000.0,0.000263,2]
[394186197,1763363326047,-500.0,0.00026363,7]
[394186198,1763363326056,-34.58366536,0.00026505,7]
[394186199,1763363326094,-465.41633464,0.00026505,7]
[394186200,1763363326121,-500.0,0.00026542,7]
[394186201,1763363326151,-314.34,0.00026676,2]
[394186202,1763363326182,-185.403442,0.00026721,2]
[394186203,1763363326211,-500.0,0.00026782,7]
[394186204,1763363326239,-500.0,0.0002679,7]
[394186205,1763363326270,-500.0,0.00027031,7]
[394186206,1763363326302,-500.0,0.00027194,7]
[394186207,1763363326332,-300.0,0.00027327,2]
[394186208,1763363326363,-500.0,0.00027329,7]
[394186209,1763363326393,-500.0,0.00027558,7]
[394186210,1763363326422,-84.90530989,0.00027622,2]
[394186211,1763363326459,-299.87982694,0.00027622,2]
[394186212,1763363326488,-1604.0,0.00027622,2]
[394186213,1763363326516,-705.0,0.00027622,2]
[394186214,1763363326545,-1318.0,0.00027622,2]
[394186215,1763363326573,-907.0,0.00027622,2]
[394186216,1763363326616,-1191.0,0.00027622,2]
[394186217,1763363326645,-287.61899177,0.00027657,2]
[394186218,1763363326673,-162.79851794,0.00027727,2]
[394186219,1763363326702,-407.24,0.00027751,2]
[394186220,1763363326999,-278.163442,0.00027986,2]
[394186221,1763363327013,-500.0,0.00027986,2]
[394186222,1763363327028,-500.0,0.00027986,2]
[394186223,1763363327046,-500.0,0.00027986,2]
[394186224,1763363327060,-300.0,0.00027986,2]
[394186225,1763363327075,-500.0,0.00027986,2]
[394186226,1763363327091,-500.0,0.00027986,2]
[394186227,1763363327104,-384.78513683,0.00027986,2]
[394186228,1763363327119,-299.87982694,0.00027986,2]
[394186229,1763363327133,-1604.0,0.00027986,2]
[394186230,1763363327189,-705.0,0.00027986,2]
[394186231,1763363327203,-1318.0,0.00027986,2]
[394186232,1763363327221,-236.54812077,0.00027986,2]
[394186233,1763363327231,-500.0,0.00028082,7]
[394186234,1763363327240,-170.45187923,0.00028202,7]
[394186235,1763363327256,-332.25034612,0.00028202,7]
[394186236,1763363327272,-442.95342719,0.00028202,7]
[394186237,1763363327283,-500.0,0.0002831,7]
[394186238,1763363327294,-248.04657281,0.00028411,7]
[394186239,1763363327309,-251.95342719,0.00028411,7]
[394186240,1763363327319,-35.66556458,0.00028441,7]
[394186241,1763363327332,-162.79851794,0.00028441,7]
[394186242,1763363327347,-301.53591748,0.00028441,7]
[394186243,1763363327358,-105.70408252,0.00028492,7]
[394186244,1763363327372,-394.29591748,0.00028492,7]
[394186245,1763363327382,-5508.3990631,0.00028547,2]
[394186246,1763363329317,-2117.97746341,0.00028547,2]
[394186247,1763363329349,-1017.19,0.00028566,20]
[394186248,1763363329377,-173.179,0.00028566,20]
[394186249,1763363329406,-500.0,0.0002858,7]
[394186250,1763363329433,-300.0,0.00028697,2]
[394186251,1763363329460,-500.0,0.00028747,7]
[394186252,1763363329488,-200.0,0.00028978,2]
[394186253,1763363329592,-500.0,0.0002902,7]
[394186254,1763363329621,-500.0,0.0002902,7]
[394186255,1763363329652,-298.26089446,0.00029026,2]
[394186256,1763363329738,-2373.63347349,0.00029108,2]
[394186257,1763363329828,-5252.74305302,0.00029108,2]
[394186258,1763363329837,-160.42875775,0.00029126,7]
[394186259,1763363329868,-339.57124225,0.00029126,7]
[394186260,1763363330071,-500.0,0.000292,7]
[394186261,1763363330113,-541.76635742,0.00029227,7]
[394186262,1763363330142,-1000.0,0.00029341,2]
[394186263,1763363330171,-500.0,0.00029366,7]
[394186264,1763363330200,-500.7,0.00029657,7]
[394186265,1763363330632,-4244.33892684,0.00029669,2]
[394186266,1763363330667,-3382.03759967,0.00029669,2]
[394186267,1763363330695,-500.0,0.00029681,7]
[394186268,1763363330782,-4011.9074144,0.00029737,2]
[394186269,1763363330810,-482.4619821,0.00029737,2]
[394186270,1763363330857,-500.0,0.00029742,7]
[394186271,1763363330993,-500.0,0.00029766,7]
[394186272,1763363331021,-788.0,0.00029784,2]
[394186273,1763363331048,-2000.0,0.0002985,2]
[394186274,1763363331076,-1424.01,0.0002985,2]
[394186275,1763363331108,-575.99,0.0002985,2]
[394186276,1763363331137,-221.3873627,0.00029899,2]
[394186277,1763363331166,-638.49258016,0.000299,2]
[394186278,1763363331194,-157.97066376,0.000299,15]
[394186279,1763363331222,-865.87417,0.00029914,2]
[394186280,1763363331424,-699.72044227,0.0002999,3]
[394186281,1763363331439,-482.4619821,0.0002999,3]
[394186282,1763363331453,-500.0,0.0002999,3]
[394186283,1763363331467,-11.271207,0.0002999,3]
[394186284,1763363331490,-500.0,0.0002999,3]
[394186285,1763363331505,-788.0,0.0002999,3]
[394186286,1763363331522,-2000.0,0.0002999,3]
[394186287,1763363331536,-2000.0,0.0002999,3]
[394186288,1763363331550,-575.99,0.0002999,3]
[394186289,1763363331564,-221.3873627,0.0002999,3]
[394186290,1763363331577,-638.49258016,0.0002999,3]
[394186291,1763363331591,-157.97066376,0.0002999,3]
[394186292,1763363331605,-865.87417,0.0002999,3]
[394186293,1763363331618,-5080.58044676,0.0002999,3]
[394186294,1763363331635,-10000.01,0.0002999,3]
[394186295,1763363331651,-10000.01,0.0002999,3]
[394186296,1763363331670,-10000.01,0.0002999,3]
[394186297,1763363331713,-10000.01,0.0002999,3]
[394186298,1763363331729,-8512.52726725,0.0002999,3]
[394186299,1763363331738,-500.0,0.00029999,2]
[394186300,1763363331747,-500.0,0.00029999,2]
[394186301,1763363331756,-263.4144965,0.00029999,2]
[394186302,1763363331765,-224.06823625,0.00029999,2]
[394186303,1763363331799,-275.93176375,0.00029999,2]
[394186304,1763363331831,-500.0,0.00029999,2]
[394186305,1763363331861,-500.0,0.00029999,2]
[394186306,1763363331892,-500.0,0.00029999,2]
[394186307,1763363331922,-500.0,0.00029999,2]
[394186308,1763363331952,-500.0,0.00029999,2]
[394186309,1763363331982,-500.0,0.00029999,2]
[394186310,1763363332014,-500.0,0.00029999,2]
[394186311,1763363332044,-500.0,0.00029999,2]
[394186312,1763363332074,-500.0,0.00029999,2]
[394186313,1763363332157,-500.0,0.00029999,2]
[394186314,1763363332186,-500.0,0.00029999,2]
[394186315,1763363332215,-500.0,0.00029999,2]
[394186316,1763363332243,-500.0,0.00029999,2]
[394186317,1763363332273,-500.0,0.00029999,2]
[394186318,1763363332306,-500.0,0.00029999,2]
[394186319,1763363332337,-500.0,0.00029999,2]
[394186320,1763363332557,-448.1464725,0.0003,5]
[394186321,1763363332575,-3000.01,0.0003,5]
[394186346,1763363437608,-874.22355268,0.000177,2]
[394186347,1763363437619,-4252.74723655,0.000177,2]
[394186348,1763363437670,-884.28605375,0.000177,2]
[394186349,1763363437682,-1645.27323331,0.000177,2]
[394186350,1763363437693,-259.36855632,0.000177,2]
[394186517,1763363439580,-591.566251,0.000177,2]
[394186525,1763363439643,-419.91817789,0.000177,2]
[394186527,1763363439655,-1193.28874729,0.000177,2]
[394186529,1763363439667,-52101.11339121,0.000177,2]
[394186531,1763363439677,-705.0,0.00022822,2]
[394186533,1763363439687,-1604.0,0.00022822,2]
[394186535,1763363439696,-705.0,0.00025822,2]
[394186537,1763363439706,-1604.0,0.00025822,2]
[394186539,1763363439716,-479.1746172,0.0002618,2]
[394186541,1763363439726,-612.0,0.0002618,2]
[394186543,1763363439735,-208.39460649,0.00027703,2]
[394186545,1763363439744,-705.0,0.00028822,2]
[394186547,1763363439754,-200.0,0.00029037,2]
[394186549,1763363439764,-287.848,0.00029301,2]
[394186551,1763363439773,-500.0,0.00029973,5]
[394186553,1763363439782,-500.0,0.00029999,2]
[394186555,1763363439792,-500.0,0.00029999,2]
[394186557,1763363439801,-500.0,0.00029999,2]
[394186559,1763363439810,-300.0,0.00029999,2]
[394186561,1763363439820,-13839.5307913,0.0003,5]
[394186563,1763363439831,-1401.00219919,0.0003,30]
[394186565,1763363439840,-8752.61221011,0.0003,3]
[394186567,1763363439850,-12583.40158137,0.0003,13]
[394186569,1763363439861,-162.87099718,0.0003,3]
[394186572,1763363439871,-6011.38,0.0003,7]
[394186574,1763363439880,-1000.0,0.0003,30]
[394186575,1763363439890,-8718.0978849,0.0003,2]
[394186577,1763363439900,-1000.0,0.0003,8]
[394186579,1763363439909,-1000.0,0.0003,8]
[394186581,1763363439918,-1000.0,0.0003,8]
[394186583,1763363439927,-1000.0,0.0003,8]
[394186585,1763363439938,-1000.0,0.0003,8]
[394186588,1763363439948,-1000.0,0.0003,8]
[394186590,1763363439958,-1000.0,0.0003,8]
[394186592,1763363439967,-1000.0,0.0003,7]
[394186594,1763363439977,-479.1746172,0.0003,3]
[394186596,1763363439986,-2000.0,0.0003,2]
[394186599,1763363439995,-160979.2902365,0.0003,2]
[394186603,1763363440007,-7683.44538826,0.0003,2]
[394186606,1763363440018,-13962.61785976,0.0003,2]
[394186608,1763363440029,-16941.57498543,0.0003,2]
[394186610,1763363440040,-263.220004,0.0003,2]
[394186613,1763363440056,-1604.0,0.00028822,2]
[394186615,1763363440065,-846.03616794,0.0003,2]
[394186617,1763363440076,-2667.1397038,0.0003,2]
[394186619,1763363440088,-577.60778035,0.0003,2]
[394186621,1763363440097,-0.99283021,0.0003,14]
[394186623,1763363440109,-583.73716979,0.0003,14]
[394186625,1763363440118,-854.23,0.0003,7]
[394186627,1763363440127,-540.0,0.0003,3]
[394186629,1763363440137,-200.0,0.0003,2]
[394186631,1763363440146,-500.0,0.00030002,7]
[394186633,1763363440156,-5000.0,0.00030017,2]
[394186635,1763363440167,-4784.08830427,0.00030027,2]
[394186637,1763363440176,-569.64215674,0.00030027,2]
[394186639,1763363440186,-136.97235213,0.00030027,2]
[394186669,1763363440476,-31.95491059,0.00030027,2]
[394186672,1763363440487,-950.8517465,0.0003003,120]
[394186674,1763363440499,-49.1482535,0.0003003,120]
[394186676,1763363440509,-171.41518184,0.00030036,56]
[394186678,1763363440518,-190.99841693,0.00030037,2]
[394186680,1763363440528,-71.89120272,0.00030059,7]
[394186682,1763363440539,-428.10879728,0.00030059,7]
[394186684,1763363440548,-377.01,0.00030065,2]
[394186686,1763363440558,-115.09958008,0.00030091,120]
[394186688,1763363440568,-280.17463188,0.00030091,120]
[394186693,1763363440605,-237.35185466,0.00030091,120]
[394186695,1763363440614,-640.50583197,0.00030091,120]
[394186697,1763363440624,-611.46,0.00030103,2]
[394186699,1763363440633,-416.78,0.00030103,2]
[394186701,1763363440642,-1145.05261887,0.00030106,3]
[394186703,1763363440653,-567.2300255,0.00030106,3]
[394186706,1763363440669,-8551.07807921,0.00030106,3]
[394186713,1763363440723,-17965.172868,0.00030106,3]
[394186715,1763363440737,-3288.62446942,0.00030106,3]
[394186717,1763363440746,-381.48271058,0.00030107,3]
[394187198,1763363445644,-267.25550117,0.00030103,2]
[394187205,1763363445707,-454.30630883,0.00030103,2]
[394187207,1763363445717,-468.37725316,0.00030107,3]
[394187210,1763363445728,-5570.45453968,0.00030107,3]
[394187212,1763363445739,-88131.15967958,0.00030107,3]
[394187214,1763363445749,-66208.0631035,0.00030107,3]
[394187216,1763363445759,-9365.0,0.00030116,5]
[394187218,1763363445768,-181.11382641,0.00030117,2]
[394187220,1763363445777,-31517.158061,0.00030117,3]
[394187222,1763363445786,-43529.13655567,0.00030127,3]
[394187366,1763363793825,-150.0,0.00019858,2]